bitfinex/quotes_BTCUSD_20220105
["timestamp","ask_amount","ask_price","bid_price","bid_amount"]
[1641412742898,0.05124182,44683.0,44677.0,0.46062389]
[1641412743095,0.05124182,44683.0,44677.0,0.05]
[1641412743296,0.05596494,44682.0,44672.0,0.05]
[1641412743496,0.05596494,44682.0,44669.0,0.2940631]
[1641412743697,0.055965,44680.0,44669.0,0.05]
[1641412743897,0.00126217,44678.0,44669.0,0.05]
[1641412744100,0.00126217,44678.0,44661.0,0.43536937]
[1641412744101,0.47053391,44671.0,44661.0,0.43536937]
[1641412744298,0.47053391,44671.0,44663.0,0.05]
[1641412744503,0.00124614,44664.0,44659.0,0.00033237]
[1641412744898,0.29508055,44664.0,44659.0,0.00033237]
[1641412745100,0.00124614,44664.0,44659.0,0.00033237]
[1641412745498,0.4120143,44664.0,44659.0,0.00033237]
[1641412745902,0.00124614,44664.0,44659.0,0.00033237]
[1641412746100,0.055984,44665.0,44659.0,0.00033237]
[1641412746101,0.33152354,44675.0,44659.0,0.00033237]
[1641412746298,0.00120171,44674.0,44659.0,0.00033237]
[1641412746562,0.055976,44673.0,44663.0,0.31858761]
[1641412746754,0.055976,44673.0,44659.0,0.00033237]
[1641412746955,0.39706092,44665.0,44659.0,0.00033237]
[1641412747154,0.11197,44669.0,44659.0,0.00033237]
[1641412747658,0.00128461,44663.0,44659.0,0.00033237]
[1641412747855,0.20128343,44668.0,44659.0,0.00033237]
[1641412747856,0.00120025,44661.0,44659.0,0.00033237]
[1641412748055,0.00120025,44661.0,44659.0,2.37e-06]
[1641412748056,2.623352,44660.0,44659.0,2.37e-06]
[1641412748260,2.26,44652.0,44641.0,0.004]
[1641412748456,0.2,44650.0,44641.0,0.004]
[1641412748656,2.74927449,44642.0,44641.0,0.004]
[1641412748856,2.623352,44642.0,44641.0,0.004]
[1641412749255,2.26,44642.0,44641.0,0.004]
[1641412749455,2.679369,44642.0,44641.0,0.004]
[1641412750056,0.45,44642.0,44641.0,0.004]
[1641412751006,2.46,44638.0,44629.0,0.08572]
[1641412751200,0.2,44633.0,44629.0,0.00022]
[1641412751399,0.563352,44632.0,44629.0,0.00022]
[1641412751601,1.1745507,44632.0,44629.0,0.00022]
[1641412751799,2.823352,44631.0,44629.0,0.00022]
[1641412753003,2.623352,44631.0,44629.0,0.00022]
[1641412753199,2.823352,44631.0,44629.0,0.00022]
[1641412754052,2.82136001,44631.0,44629.0,0.00022]
[1641412755848,0.56136001,44631.0,44629.0,0.00022]
[1641412756049,0.2,44631.0,44629.0,0.00022]
[1641412756252,0.86975487,44634.0,44629.0,0.00022]
[1641412756551,0.211935,44642.0,44624.0,0.396359]
[1641412756552,0.48667193,44648.0,44632.0,0.0012183]
[1641412756749,0.48795785,44648.0,44632.0,0.0012183]
[1641412756950,0.48795785,44648.0,44639.0,0.38912068]
[1641412757150,0.00128592,44648.0,44639.0,0.38912068]
[1641412757353,0.00128592,44648.0,44622.0,0.00033]
[1641412757354,0.18378522,44630.0,44622.0,0.00033]
[1641412757552,0.18378522,44630.0,44627.0,0.00124674]
[1641412757810,0.18378522,44630.0,44622.0,0.00033]
[1641412757811,0.40222974,44629.0,44622.0,0.00033]
[1641412758009,0.40222974,44629.0,44619.0,0.00055]
[1641412758010,2.26,44624.0,44619.0,0.00044]
[1641412758215,2.26,44619.0,44609.0,0.00044]
[1641412758412,0.363341,44615.0,44609.0,0.00044]
[1641412758610,2.26,44617.0,44605.0,0.00044]
[1641412758611,2.26,44610.0,44606.0,5e-05]
[1641412758809,2.62462323,44607.0,44606.0,5e-05]
[1641412759009,2.83950769,44607.0,44604.0,0.00033]
[1641412759210,2.83950769,44607.0,44598.0,0.00022]
[1641412759211,0.18835773,44605.0,44601.0,0.00103]
[1641412759513,0.49651495,44607.0,44601.0,0.00103]
[1641412759514,0.0376,44604.0,44601.0,0.00103]
[1641412759709,0.42565111,44620.0,44601.0,0.00103]
[1641412759710,0.0376,44603.0,44601.0,0.00103]
[1641412759910,0.112109,44612.0,44602.0,0.005212]
[1641412760109,0.00120892,44606.0,44601.0,0.00103]
[1641412760310,0.056066,44603.0,44601.0,0.00103]
[1641412760510,0.353341,44602.0,44601.0,0.00103]
[1641412760816,0.00120892,44606.0,44601.0,0.00103]
[1641412761011,0.00124314,44616.0,44602.0,0.015213]
[1641412761211,0.18228145,44614.0,44601.0,0.00103]
[1641412761411,0.056053,44608.0,44601.0,0.00103]
[1641412761651,0.0012342,44602.0,44601.0,0.00103]
[1641412761855,0.9745842,44602.0,44601.0,0.00103]
[1641412762049,0.3645842,44602.0,44601.0,0.00103]
[1641412762452,0.056063,44610.0,44601.0,0.00103]
[1641412762453,0.418083,44613.0,44601.0,0.00103]
[1641412762653,0.2499,44613.0,44602.0,0.00127982]
[1641412762851,1.39896899,44608.0,44607.0,0.30592492]
[1641412763049,1.39896899,44608.0,44601.0,0.00103]
[1641412763050,0.83231899,44608.0,44601.0,0.00103]
[1641412763253,0.00128559,44614.0,44601.0,0.00103]
[1641412763454,0.00125558,44606.0,44601.0,0.00103]
[1641412763654,0.00125558,44606.0,44600.0,0.243531]
[1641412763852,0.05605,44610.0,44600.0,0.243531]
[1641412764052,0.04105,44610.0,44600.0,0.293531]
[1641412764254,0.04105,44610.0,44609.0,0.45404419]
[1641412764454,2.25,44617.0,44609.0,0.45404419]
[1641412764455,0.2007,44628.0,44609.0,0.59832012]
[1641412764655,0.00125703,44622.0,44619.0,0.16448735]
[1641412764859,0.42,44628.0,44620.0,0.28619732]
[1641412765054,0.19602094,44630.0,44619.0,0.16448735]
[1641412765303,0.19602094,44630.0,44617.0,0.00129444]
[1641412765501,0.37895901,44624.0,44616.0,0.46905147]
[1641412765803,0.37895901,44624.0,44607.0,0.26929626]
[1641412765804,0.37019489,44624.0,44607.0,0.26929626]
[1641412766005,0.37019489,44624.0,44602.0,0.056039]
[1641412766006,0.0012026,44618.0,44602.0,0.056039]
[1641412766201,0.00128448,44620.0,44614.0,0.28279336]
[1641412766402,0.00128448,44620.0,44611.0,0.18533435]
[1641412766602,0.36335,44619.0,44606.0,0.42758051]
[1641412766802,0.00128448,44620.0,44606.0,0.42758051]
[1641412767002,0.056045,44615.0,44606.0,0.42758051]
[1641412767202,0.056045,44615.0,44607.0,0.015196]
[1641412767404,0.00128448,44620.0,44611.0,0.00022678]
[1641412767804,0.00128448,44620.0,44613.0,0.47154996]
[1641412768003,0.05728192,44627.0,44619.0,0.18950218]
[1641412768304,0.05728192,44627.0,44613.0,0.52054996]
[1641412768305,0.00124992,44627.0,44613.0,0.52054996]
[1641412768505,0.00124992,44627.0,44613.0,0.04934413]
[1641412768706,0.00124098,44616.0,44613.0,0.00034413]
[1641412769152,0.05604493,44622.0,44614.0,0.2996024]
[1641412769153,0.05604,44618.0,44614.0,0.2996024]
[1641412769349,0.112085,44622.0,44614.0,0.2996024]
[1641412769350,0.0001,44620.0,44614.0,0.2996024]
[1641412769554,0.46082313,44621.0,44614.0,0.2996024]
[1641412769748,0.00122107,44620.0,44614.0,0.2996024]
[1641412769948,0.00122107,44620.0,44614.0,0.47438094]
[1641412770351,0.00122107,44620.0,44615.0,0.015186]
[1641412770753,1.07e-06,44620.0,44615.0,0.015186]
[1641412770954,1.07e-06,44620.0,44619.0,0.015183]
[1641412771456,1.07e-06,44620.0,44619.0,0.44803142]
[1641412771654,0.18388522,44630.0,44619.0,0.44803142]
[1641412771655,0.18388522,44630.0,44619.0,0.59803142]
[1641412771854,0.18388522,44630.0,44623.0,0.015172]
[1641412772054,0.18388522,44630.0,44627.0,0.16155174]
[1641412772256,0.18388522,44630.0,44628.0,0.37737]
[1641412772453,0.18388522,44630.0,44629.0,0.015163]
[1641412772898,1.39388523,44630.0,44629.0,0.015163]
[1641412773100,1.39388523,44630.0,44627.0,0.16155174]
[1641412773296,1.39388523,44630.0,44627.0,0.50422297]
[1641412773298,0.24288523,44630.0,44627.0,0.50422297]
[1641412773497,0.24288523,44630.0,44628.0,0.015163]
[1641412773701,0.24288523,44630.0,44627.0,0.65422297]
[1641412773899,0.19828759,44639.0,44629.0,2.265163]
[1641412774201,0.16728759,44639.0,44638.0,1.90522854]
[1641412774399,7.59e-06,44640.0,44638.0,2.62253415]
[1641412774600,0.8278,44648.0,44642.0,0.05597906]
[1641412774797,0.8278,44648.0,44639.0,0.01637133]
[1641412774798,0.8278,44648.0,44646.0,0.015133]
[1641412774997,0.8278,44648.0,44647.0,2.36634298]
[1641412775197,0.48667193,44656.0,44655.0,0.00124729]
[1641412775396,0.37626792,44667.0,44655.0,0.82728157]
[1641412775397,0.0001,44660.0,44655.0,0.82728157]
[1641412775596,0.0001,44660.0,44658.0,0.01633308]
[1641412775796,1.714,44659.0,44658.0,0.065113]
[1641412776001,2.07735,44659.0,44648.0,0.00126087]
[1641412776200,0.62934202,44658.0,44653.0,0.012185]
[1641412776400,0.8278,44657.0,44653.0,0.012185]
[1641412776646,0.00121108,44654.0,44653.0,0.012185]
[1641412776851,0.36456108,44654.0,44653.0,0.012185]
[1641412777050,0.06400001,44659.0,44653.0,0.0376]
[1641412777249,0.004,44659.0,44658.0,0.00122507]
[1641412777446,0.48667193,44678.0,44658.0,0.00122507]
[1641412777447,0.48667193,44670.0,44658.0,0.05393407]
[1641412777646,0.08228557,44669.0,44663.0,0.02797951]
[1641412777847,0.48167193,44670.0,44669.0,0.00129785]
[1641412777848,0.45552508,44670.0,44669.0,0.00129785]
[1641412778046,0.39502638,44674.0,44669.0,0.00129785]
[1641412778248,0.59296119,44680.0,44675.0,0.111871]
[1641412778449,0.59296119,44680.0,44679.0,0.00127959]
[1641412778450,0.58296119,44680.0,44679.0,0.00127959]
[1641412778651,0.58296119,44680.0,44675.0,0.05]
[1641412778652,0.36335,44680.0,44675.0,0.05]
[1641412778846,0.36335,44679.0,44671.0,0.0012682]
[1641412779050,0.8278,44673.0,44664.0,0.48294505]
[1641412779251,0.47239956,44677.0,44663.0,0.00121403]
[1641412779252,0.26599202,44676.0,44663.0,0.00121403]
[1641412779449,0.26599202,44676.0,44650.0,0.111935]
[1641412779450,0.00121058,44666.0,44661.0,0.0855]
[1641412779648,0.00121058,44666.0,44629.0,0.42]
[1641412779649,0.00121974,44662.0,44645.0,0.00144986]
[1641412780048,0.05721274,44662.0,44645.0,0.00144986]
[1641412780300,0.00121974,44662.0,44654.0,0.14640857]
[1641412780503,0.18450634,44679.0,44654.0,0.14140857]
[1641412780705,0.00126198,44672.0,44656.0,0.16579161]
[1641412780902,0.00126198,44672.0,44656.0,0.00124397]
[1641412781305,0.05598,44667.0,44662.0,0.17288585]
[1641412781505,0.20022,44677.0,44667.0,0.00122059]
[1641412781506,0.26599202,44677.0,44667.0,0.00122059]
[1641412781809,0.26599202,44682.0,44667.0,0.00122059]
[1641412782003,0.36335,44681.0,44667.0,0.00122059]
[1641412782208,0.00127485,44679.0,44662.0,0.17288585]
[1641412782406,0.055977,44671.0,44664.0,0.26849784]
[1641412782603,0.055977,44671.0,44665.0,0.015094]
[1641412782810,0.055977,44671.0,44662.0,0.17288585]
[1641412783005,0.055977,44671.0,44660.0,0.00126962]
[1641412783405,0.42331931,44668.0,44659.0,0.31680445]
[1641412783603,0.42331931,44668.0,44656.0,0.00124039]
[1641412783806,0.31193032,44667.0,44652.0,0.28658135]
[1641412784060,0.31193032,44667.0,44654.0,0.18795137]
[1641412784061,0.29720139,44667.0,44654.0,0.18795137]
[1641412784356,0.055984,44665.0,44652.0,0.28658135]
[1641412784552,0.4240624,44661.0,44652.0,0.90619571]
[1641412784753,0.4240624,44661.0,44653.0,0.0151]
[1641412784952,0.0012622,44667.0,44653.0,0.0151]
[1641412785153,0.00120311,44679.0,44663.0,0.25289192]
[1641412785353,0.00120311,44679.0,44665.0,0.15136838]
[1641412785553,0.00120311,44679.0,44665.0,0.05]
[1641412785754,0.00120311,44679.0,44663.0,0.25649373]
[1641412785952,0.00120311,44679.0,44663.0,0.30649373]
[1641412786153,0.00120311,44679.0,44667.0,0.41890353]
[1641412786353,0.00120311,44679.0,44668.0,0.015088]
[1641412786553,0.00120311,44679.0,44667.0,0.05]
[1641412786753,0.055977,44671.0,44666.0,0.18213386]
[1641412786957,0.055977,44671.0,44656.0,0.00127474]
[1641412787156,0.055977,44671.0,44651.0,0.05597312]
[1641412787355,0.00125761,44673.0,44667.0,0.37929562]
[1641412787553,0.39154891,44676.0,44659.0,0.19426379]
[1641412787805,0.055974,44673.0,44659.0,0.19426379]
[1641412788205,0.055974,44673.0,44660.0,0.05]
[1641412788405,0.055974,44673.0,44663.0,0.15599921]
[1641412788605,0.055974,44673.0,44670.0,0.33724812]
[1641412789005,0.00121493,44676.0,44670.0,0.77900776]
[1641412789208,0.05718493,44676.0,44670.0,0.77900776]
[1641412789408,0.05718493,44676.0,44670.0,0.38724812]
[1641412789708,0.05718493,44676.0,44659.0,0.19426379]
[1641412789709,0.05718493,44676.0,44646.0,1.157]
[1641412789908,0.111941,44680.0,44645.0,0.00146951]
[1641412789909,0.12838324,44670.0,44645.0,0.00146951]
[1641412790108,0.055992,44658.0,44645.0,0.00146951]
[1641412790307,0.48493012,44656.0,44647.0,0.55294311]
[1641412790507,0.055992,44658.0,44647.0,0.55294311]
[1641412790707,0.055992,44658.0,44655.0,0.18792373]
[1641412790907,0.00122669,44661.0,44655.0,0.25769247]
[1641412791109,0.50535924,44669.0,44656.0,0.27845625]
[1641412791110,0.39337224,44669.0,44656.0,0.27845625]
[1641412791307,0.20076,44669.0,44656.0,0.26655132]
[1641412791560,0.3798713,44671.0,44662.0,0.46377467]
[1641412791952,0.3798713,44671.0,44668.0,0.28212819]
[1641412792356,0.00126986,44673.0,44668.0,0.28212819]
[1641412792553,0.00126986,44673.0,44669.0,0.065089]
[1641412792554,1.25838324,44670.0,44669.0,0.065089]
[1641412792753,1.25838324,44670.0,44668.0,0.33212819]
[1641412792754,0.12838324,44670.0,44668.0,0.33212819]
[1641412792954,0.12838324,44670.0,44669.0,0.015089]
[1641412793352,0.12838324,44670.0,44669.0,0.62469656]
[1641412793553,0.12838324,44670.0,44669.0,1.80595262]
[1641412793753,0.12838324,44670.0,44669.0,0.77595262]
[1641412793952,0.12838324,44670.0,44669.0,0.67595262]
[1641412794152,0.12838324,44670.0,44669.0,0.72469656]
[1641412794556,0.05772351,44670.0,44669.0,0.72469656]
[1641412794755,0.05772351,44670.0,44669.0,0.115089]
[1641412794955,0.05772351,44670.0,44669.0,0.05]
[1641412795156,0.05772351,44670.0,44659.0,0.02798509]
[1641412795402,0.01218472,44676.0,44670.0,0.02777649]
[1641412796198,0.8278,44678.0,44673.0,0.33786276]
[1641412796199,1.29931648,44678.0,44673.0,0.33786276]
[1641412796501,1.29931648,44678.0,44673.0,0.33286276]
[1641412796502,0.8278,44678.0,44673.0,0.33286276]
[1641412797099,0.004,44689.0,44673.0,0.43286276]
[1641412797399,0.055957,44687.0,44681.0,0.41804654]
[1641412797603,0.43669163,44692.0,44681.0,0.41804654]
[1641412797801,0.00122005,44688.0,44683.0,0.32285462]
[1641412798200,0.055957,44687.0,44683.0,0.31785462]
[1641412798399,0.36335,44686.0,44683.0,0.31785462]
[1641412798799,0.36335,44686.0,44671.0,0.27923787]
[1641412799053,0.00123955,44685.0,44671.0,0.05]
[1641412799253,0.41283328,44680.0,44671.0,0.20059529]
[1641412799448,0.00123955,44685.0,44671.0,0.20059529]
[1641412799948,0.81,44679.0,44678.0,0.25232798]
[1641412800151,0.111932,44684.0,44678.0,0.25232798]
[1641412800152,0.111932,44684.0,44678.0,0.30232798]
[1641412800348,0.111932,44684.0,44678.0,0.66562709]
[1641412800548,0.36335,44683.0,44670.0,0.0227]
[1641412800753,0.36335,44683.0,44660.0,0.05596212]
[1641412800754,0.1012814,44674.0,44660.0,0.00122665]
[1641412800950,0.45858602,44682.0,44645.0,0.00022188]
[1641412800951,0.00126725,44670.0,44645.0,0.00022188]
[1641412801153,0.00126963,44662.0,44645.0,0.00022188]
[1641412801450,0.43286284,44653.0,44645.0,0.00022188]
[1641412801652,0.19367415,44652.0,44645.0,0.00022188]
[1641412801850,0.36335,44651.0,44645.0,0.00022188]
[1641412802052,0.656952,44651.0,44645.0,0.00022188]
[1641412802252,0.2,44646.0,44631.0,0.004]
[1641412802452,0.56335,44642.0,44631.0,0.004]
[1641412802655,0.43290974,44639.0,44631.0,0.004]
[1641412802909,0.70803725,44638.0,44631.0,0.004]
[1641412803109,0.70803725,44638.0,44625.0,0.0999]
[1641412803110,0.06423587,44632.0,44625.0,0.0999]
[1641412803308,0.00127032,44627.0,44625.0,0.0999]
[1641412803507,2.13335,44626.0,44625.0,0.0999]
[1641412803807,2.13335,44626.0,44618.0,0.00011]
[1641412803808,0.0012974,44621.0,44618.0,0.00011]
[1641412804007,0.0012974,44621.0,44619.0,1e-05]
[1641412804008,0.58130339,44620.0,44619.0,1e-05]
[1641412804207,0.58130339,44620.0,44615.0,0.00022]
[1641412804208,0.00121755,44618.0,44615.0,0.00022]
[1641412804409,0.36335,44617.0,44615.0,0.00022]
[1641412804610,0.00121755,44618.0,44615.0,0.00022]
[1641412804807,0.00128392,44627.0,44615.0,0.00022]
[1641412805007,0.36335,44626.0,44615.0,0.00022]
[1641412805214,0.36335,44626.0,44613.0,0.00033]
[1641412805216,0.11207877,44622.0,44613.0,0.00033]
[1641412805412,0.2,44619.0,44613.0,0.00033]
[1641412805609,0.2,44619.0,44609.0,0.01251612]
[1641412805610,2.45124292,44615.0,44608.0,0.00033]
[1641412805811,0.056067,44612.0,44608.0,0.00033]
[1641412806008,0.2,44609.0,44605.0,0.0001]
[1641412806209,0.2,44607.0,44605.0,0.0001]
[1641412806408,2.25,44605.0,44601.0,0.0037]
[1641412806665,0.36335,44604.0,44600.0,0.01053]
[1641412806864,0.36335,44604.0,44597.0,0.00033]
[1641412806865,0.00124856,44599.0,44597.0,0.00033]
[1641412807066,2.82706187,44598.0,44590.0,0.00033]
[1641412807263,2.82706187,44598.0,44593.0,2e-05]
[1641412807264,2.25011,44595.0,44593.0,2e-05]
[1641412807564,2.25011,44595.0,44587.0,0.00022]
[1641412807565,0.112181,44591.0,44587.0,0.00022]
[1641412807768,0.36335,44588.0,44587.0,0.00022]
[1641412807963,0.36335,44588.0,44584.0,0.0001]
[1641412808164,0.00123095,44584.0,44580.0,0.47404]
[1641412808365,0.54491533,44583.0,44580.0,0.47404]
[1641412808563,0.54491533,44583.0,44578.0,6e-05]
[1641412808564,0.00125406,44581.0,44578.0,6e-05]
[1641412808765,0.00125406,44581.0,44574.0,0.00022]
[1641412808766,0.36335,44580.0,44577.0,0.09844]
[1641412808965,0.36335,44580.0,44575.0,0.00022]
[1641412808966,0.0573977,44578.0,44575.0,0.00022]
[1641412809165,0.0573977,44578.0,44572.0,0.00011]
[1641412809166,0.00125929,44577.0,44572.0,0.00011]
[1641412809467,0.00121352,44575.0,44561.0,0.17216225]
[1641412809666,0.11792844,44571.0,44568.0,2.81433964]
[1641412809868,0.11792844,44571.0,44568.0,2.80433964]
[1641412809869,0.112236,44571.0,44568.0,2.80433964]
[1641412810065,0.006697,44579.0,44568.0,2.80433964]
[1641412810066,0.15752189,44590.0,44570.0,0.015271]
[1641412810315,0.05733856,44599.0,44575.0,0.00126491]
[1641412810316,0.2695358,44593.0,44575.0,0.00126491]
[1641412810507,0.50038347,44596.0,44584.0,0.14932216]
[1641412810714,0.88694452,44596.0,44585.0,0.70296915]
[1641412810906,0.50038347,44596.0,44593.0,0.23879402]
[1641412811106,0.50038347,44596.0,44593.0,0.33879402]
[1641412811308,0.59953307,44598.0,44594.0,2.21]
[1641412811506,0.59953307,44598.0,44594.0,0.17445494]
[1641412811507,0.59914288,44598.0,44594.0,0.17445494]
[1641412811708,0.1338017,44609.0,44594.0,0.17445494]
[1641412811709,0.2,44607.0,44594.0,0.17445494]
[1641412811907,0.2,44607.0,44604.0,0.0999]
[1641412811908,0.2695358,44606.0,44604.0,0.0999]
[1641412812106,0.4838866,44605.0,44604.0,0.05]
[1641412812307,0.8472366,44605.0,44593.0,0.00122375]
[1641412812507,0.00126824,44596.0,44578.0,0.00126462]
[1641412812708,0.00126824,44596.0,44579.0,0.010229]
[1641412813107,0.2695358,44604.0,44589.0,0.20335337]
[1641412813314,0.2695358,44604.0,44597.0,0.0999]
[1641412813315,0.36464062,44603.0,44597.0,0.0999]
[1641412813510,0.36464062,44603.0,44566.0,0.02011]
[1641412813709,0.36464062,44603.0,44571.0,0.01145451]
[1641412813710,0.0089859,44603.0,44571.0,0.01145451]
[1641412813908,0.2695358,44604.0,44579.0,0.00128659]
[1641412813909,0.00127604,44592.0,44579.0,0.00128659]
[1641412814154,1.56,44594.0,44580.0,0.009545]
[1641412814354,1.56,44594.0,44587.0,0.15469926]
[1641412814355,1.555,44594.0,44587.0,0.15469926]
[1641412814556,1.555,44594.0,44581.0,0.0999]
[1641412814960,1.555,44594.0,44592.0,0.14092958]
[1641412815159,1.555,44594.0,44593.0,1.45837209]
[1641412815160,1.2831,44594.0,44593.0,1.45837209]
[1641412815357,0.20129484,44607.0,44593.0,1.169537]
[1641412815562,0.20129484,44607.0,44599.0,0.18075618]
[1641412815757,0.20129484,44607.0,44595.0,0.45955578]
[1641412816057,0.20129484,44607.0,44601.0,0.17560584]
[1641412816058,0.2,44607.0,44601.0,0.17560584]
[1641412816267,0.1255296,44623.0,44606.0,0.09999353]
[1641412816460,0.78990667,44630.0,44606.0,0.09999353]
[1641412816461,0.40324995,44630.0,44622.0,0.09999353]
[1641412816661,0.00120803,44631.0,44629.0,1.89999353]
[1641412816662,0.19714995,44631.0,44629.0,1.89999353]
[1641412816859,0.90072293,44638.0,44630.0,2.0276]
[1641412816860,0.89658091,44638.0,44630.0,2.0276]
[1641412817060,0.15078091,44638.0,44637.0,1.50589471]
[1641412817266,0.15078091,44638.0,44637.0,1.50422022]
[1641412817460,1.00994571,44651.0,44638.0,1.29]
[1641412817659,1.00994571,44651.0,44642.0,0.10943753]
[1641412817903,0.20473862,44662.0,44648.0,0.00122694]
[1641412818104,0.15757467,44652.0,44648.0,0.01066194]
[1641412818303,0.15757467,44652.0,44633.0,0.0999]
[1641412818304,0.2762861,44651.0,44632.0,0.055999]
[1641412818600,0.0012709,44655.0,44631.0,0.003125]
[1641412818601,0.277557,44655.0,44631.0,0.003125]
[1641412818800,0.027,44649.0,44632.0,0.005]
[1641412819000,0.027,44649.0,44641.0,0.25449732]
[1641412819200,0.02575672,44649.0,44647.0,0.18515325]
[1641412819604,0.75492762,44656.0,44648.0,2.25124485]
[1641412819803,0.004,44659.0,44658.0,0.00127858]
[1641412820000,0.004,44669.0,44658.0,0.00127858]
[1641412820001,0.003,44669.0,44658.0,0.00127858]
[1641412820203,0.01322081,44665.0,44658.0,0.00127858]
[1641412820400,0.01322081,44665.0,44648.0,0.2762861]
[1641412820606,0.28950691,44665.0,44638.0,0.055994]
[1641412820808,0.28950691,44665.0,44646.0,0.00126857]
[1641412820809,0.03222081,44665.0,44646.0,0.00126857]
[1641412821003,0.363335,44664.0,44635.0,0.01322081]
[1641412821205,0.363335,44664.0,44640.0,0.00121646]
[1641412821206,0.2762861,44664.0,44640.0,0.00121646]
[1641412821400,0.15957682,44655.0,44647.0,0.32241372]
[1641412821657,0.15957682,44655.0,44635.0,0.01322081]
[1641412821658,0.69226186,44653.0,44651.0,0.0999]
[1641412821960,0.69226186,44653.0,44635.0,0.01322081]
[1641412821961,0.03,44651.0,44635.0,0.01322081]
[1641412822157,0.363335,44650.0,44635.0,0.01322081]
[1641412822354,0.1855733,44644.0,44621.0,0.004]
[1641412822556,0.00038611,44635.0,44624.0,0.33585248]
[1641412822957,0.00124042,44644.0,44626.0,0.09999353]
[1641412823259,0.002,44650.0,44635.0,0.00129723]
[1641412823555,0.002,44650.0,44640.0,0.37300272]
[1641412823760,0.002,44650.0,44644.0,0.25500658]
[1641412823956,0.6877542,44646.0,44644.0,0.30500658]
[1641412824155,0.6877542,44646.0,44644.0,0.35500658]
[1641412824354,0.6877542,44646.0,44645.0,0.0954]
[1641412824761,0.001,44646.0,44645.0,0.37290888]
[1641412824959,0.6877542,44654.0,44647.0,0.47530596]
[1641412824960,0.5923542,44654.0,44647.0,0.47530596]
[1641412825156,0.9170056,44663.0,44662.0,0.00127713]
[1641412825409,0.9170056,44663.0,44662.0,0.14114215]
[1641412825608,0.9170056,44663.0,44662.0,0.4568536]
[1641412825813,0.9170056,44663.0,44662.0,0.5068536]
[1641412826008,0.9170056,44663.0,44662.0,1.14402285]
[1641412826210,0.01166815,44669.0,44663.0,1.11]
[1641412826410,0.01166815,44669.0,44663.0,0.149495]
[1641412826612,0.01166815,44669.0,44667.0,0.00125451]
[1641412826810,0.01798975,44669.0,44667.0,0.00125451]
[1641412827229,1.0316313,44680.0,44669.0,1.49]
[1641412827420,1.0316313,44694.0,44674.0,0.09999353]
[1641412827613,1.0316313,44694.0,44678.0,0.00126312]
[1641412827810,1.0316313,44694.0,44688.0,0.00125284]
[1641412828010,0.3957709,44693.0,44688.0,0.00125284]
[1641412828414,0.3957709,44693.0,44675.0,0.05]
[1641412828609,0.3957709,44693.0,44683.0,0.0012427]
[1641412828810,0.3957709,44693.0,44689.0,0.00128771]
[1641412829059,0.004,44699.0,44689.0,0.00128771]
[1641412829258,0.004,44699.0,44697.0,0.00121095]
[1641412829455,0.004,44699.0,44698.0,0.00128183]
[1641412830055,0.004,44699.0,44698.0,0.29589515]
[1641412830456,0.98933642,44707.0,44698.0,0.34589515]
[1641412830659,0.98933642,44707.0,44706.0,0.00122376]
[1641412831158,0.004,44709.0,44698.0,0.35261332]
[1641412831363,0.004,44709.0,44707.0,0.33022475]
[1641412831954,0.004,44709.0,44707.0,0.38022475]
[1641412831955,0.00021859,44709.0,44707.0,0.38022475]
[1641412832255,0.00021859,44709.0,44707.0,0.33022475]
[1641412832256,1.36952337,44708.0,44707.0,0.33022475]
[1641412832459,0.90952337,44708.0,44707.0,0.3314858]
[1641412832655,0.00021859,44709.0,44707.0,0.3314858]
[1641412832904,0.92390793,44713.0,44707.0,0.3314858]
[1641412833505,0.92390793,44713.0,44707.0,0.3814858]
[1641412833703,0.8278,44718.0,44707.0,0.3814858]
[1641412833704,0.79955424,44709.0,44707.0,0.3814858]
[1641412833904,0.79955424,44709.0,44708.0,0.00127793]
[1641412834311,0.79955424,44709.0,44708.0,2.28887793]
[1641412834506,0.92390793,44715.0,44709.0,0.85560522]
[1641412834708,0.0001,44720.0,44718.0,0.00129379]
[1641412834910,0.215,44736.0,44723.0,0.055878]
[1641412835116,1.00994571,44737.0,44735.0,0.00123001]
[1641412835307,1.00994571,44737.0,44736.0,0.24771604]
[1641412835509,1.00994571,44737.0,44736.0,0.29771604]
[1641412835909,0.48395234,44744.0,44738.0,0.00128378]
[1641412836570,0.28556774,44743.0,44736.0,0.24771604]
[1641412836759,0.01326284,44743.0,44738.0,0.009]
[1641412836958,0.00122948,44748.0,44738.0,0.009]
[1641412837161,0.00129691,44754.0,44738.0,0.01029368]
[1641412837358,1.0788393,44763.0,44738.0,0.01029368]
[1641412837359,1.05278561,44750.0,44738.0,0.01029368]
[1641412837560,1.04278561,44750.0,44743.0,0.00125938]
[1641412838162,1.04278561,44750.0,44748.0,0.30327537]
[1641412838558,0.98778561,44750.0,44748.0,0.19257537]
[1641412838960,0.98778561,44750.0,44749.0,0.10122909]
[1641412839159,0.98778561,44750.0,44749.0,0.82443414]
[1641412839360,2.25,44758.0,44748.0,0.13530157]
[1641412839559,0.004,44759.0,44758.0,0.00128809]
[1641412839858,0.004,44759.0,44757.0,0.24971796]
[1641412839859,0.41876323,44759.0,44757.0,0.24971796]
[1641412840311,0.004,44759.0,44757.0,0.24971796]
[1641412840907,0.004,44759.0,44749.0,0.05121856]
[1641412840908,2.25,44758.0,44749.0,0.00127992]
[1641412841111,2.25,44758.0,44724.0,0.05926742]
[1641412841112,0.1,44751.0,44728.0,0.27402226]
[1641412841410,0.1,44751.0,44718.0,0.223433]
[1641412841411,0.00124535,44745.0,44734.0,0.17241046]
[1641412841606,2.61458035,44745.0,44737.0,0.27402226]
[1641412841805,2.61458035,44745.0,44739.0,0.32155842]
[1641412842012,2.25124535,44745.0,44739.0,0.32155842]
[1641412842208,0.00127729,44756.0,44739.0,0.32155842]
[1641412842406,0.00127613,44756.0,44741.0,0.16477004]
[1641412842608,0.00127613,44756.0,44740.0,0.27402226]
[1641412842610,0.363335,44755.0,44740.0,0.27402226]
[1641412842811,0.04027613,44756.0,44739.0,0.32655842]
[1641412843009,0.363335,44755.0,44739.0,0.005]
[1641412843210,0.363335,44755.0,44715.0,0.27402226]
[1641412843211,2.25,44739.0,44715.0,0.27402226]
[1641412843411,2.25,44739.0,44723.0,0.00120474]
[1641412843414,0.363335,44738.0,44723.0,0.00120474]
[1641412843611,0.00125449,44732.0,44715.0,0.17804332]
[1641412843810,0.1,44730.0,44715.0,0.17804332]
[1641412844066,0.39970086,44736.0,44718.0,0.25551271]